Cogmind - Beta 14 @@@ ROGUE MODE // 2024.09.29 @ 02:48:53 // Winter2019/RPGLIKE Player: Necroptosis Result: Destroyed by Armor Guard with Helical Railgun Performance ------------- Evolutions (6) 3000 Regions Visited (22) 4400 Robots Destroyed (66) 330 Value Destroyed (4281) 4281 Prototype IDs (43) 860 Alien Tech Used (0) 0 Bonus (7028) 7028 TOTAL SCORE: 19899 Bonus ------- High Alert Combat Kills 172 Follower Combat Kills 289 Entered Garrisons 1600 Used RIF Installer 5000 Aligned with FarCom 300 Friendly Fire -333 Cogmind --------- Core Integrity 0/2100 Matter 46/300 Energy 190/190 System Corruption 0% Temperature Cool (0) Movement Flying (29) Location -4/Armory Parts ------- > --- POWER (1) -------- Light Quantum Reactor > --- PROPULSION (2) --- Cooled Nuclear Pulse Thruster Diametric Drive > --- UTILITY (8) ------ Signal Interpreter Transmission Jammer Relay Coupler [NC] (54) Relay Coupler [Swarmer] (47) Relay Coupler [Grunt] (56) Relay Coupler [Sentry] (25) Relay Coupler [Hunter] (33) Relay Coupler [Proto] (30) > --- WEAPON (2) ------- Remote Datajack Plasma Lance > --- INVENTORY (6) ---- Relay Coupler [Grunt] (58) Relay Coupler [Proto] (30) Relay Coupler [Proto] (30) Mini Smartbomb Launcher Improved Remote Datajack Peak State ------------ > --- POWER ------------ Light Quantum Reactor > --- PROPULSION ------- Cooled Nuclear Pulse Thruster Diametric Drive > --- UTILITY ---------- Signal Interpreter Transmission Jammer Relay Coupler [NC] Relay Coupler [Swarmer] Relay Coupler [Grunt] Relay Coupler [Sentry] Relay Coupler [Hunter] Relay Coupler [Proto] > --- WEAPON ----------- Remote Datajack Plasma Lance > --- INVENTORY -------- Relay Coupler [Grunt] Relay Coupler [Proto] Relay Coupler [Proto] Mini Smartbomb Launcher Improved Remote Datajack [Rating: 69] Favorites ----------- Power Heavy Ion Engine Engine Heavy Ion Engine Reactor Light Quantum Reactor Propulsion Xenon Bombardment Thruster Wheel Wheel Flight Unit Xenon Bombardment Thruster Utility Signal Interpreter Device Transmission Jammer Processor Signal Interpreter Hackware Relay Coupler [Swarmer] Protection Light Armor Plating Weapon Gauss Cannon Energy Gun Medium Laser Ballistic Gun Gauss Rifle Ballistic Cannon Gauss Cannon Launcher Improved Grenade Launcher Special Weapon Remote Datajack Impact Weapon Power Maul Piercing Weapon Plasma Lance Special Melee Weapon Improved Datajack Build | -11 -10 -10 -10 -9 -8 -8 -8 -8 -7 -7 -7 -7 -6 -6 -6 -6 -6 -6 -5 -5 -4 -4 ------- Run | Yrd Mat Min Exi Min Mat Gar Mat Gar Fac Gar Fac Gar Fac Gar Fac Gar Fac Gar Fac Gar Fac Arm Slots Evolved 9 | 3 . . . . . 2 . . . 2 . . . . . . . . 1 . 1 . Power . | . . . . . . . . . . . . . . . . . . . . . . . Propulsion 1 | 1 . . . . . . . . . . . . . . . . . . . . . . Utility 7 | 1 . . . . . 2 . . . 2 . . . . . . . . 1 . 1 . Weapon 1 | 1 . . . . . . . . . . . . . . . . . . . . . . Parts Attached 85 | 5 9 . . 1 4 3 7 6 . 3 5 4 1 3 . 6 . 5 3 7 1 12 Power 8 | 2 1 . . . . . 1 . . . . . . . . . . . . 1 . 3 Engine 5 | 2 1 . . . . . 1 . . . . . . . . . . . . 1 . . Core . | . . . . . . . . . . . . . . . . . . . . . . . Reactor 3 | . . . . . . . . . . . . . . . . . . . . . . 3 Propulsion 16 | . 4 . . 1 . . 3 2 . . 2 . . . . . . . 2 . . 2 Treads . | . . . . . . . . . . . . . . . . . . . . . . . Leg . | . . . . . . . . . . . . . . . . . . . . . . . Wheel 2 | . 2 . . . . . . . . . . . . . . . . . . . . . Hover . | . . . . . . . . . . . . . . . . . . . . . . . Flight 14 | . 2 . . 1 . . 3 2 . . 2 . . . . . . . 2 . . 2 Utility 22 | 1 1 . . . 2 2 3 . . 1 2 . . 1 . 1 . 4 . 3 . 1 Device 5 | 1 . . . . 1 1 1 . . . 1 . . . . . . . . . . . Storage . | . . . . . . . . . . . . . . . . . . . . . . . Processor 2 | . 1 . . . . 1 . . . . . . . . . . . . . . . . Hackware 12 | . . . . . . . . . . 1 1 . . 1 . 1 . 4 . 3 . 1 Protection 3 | . . . . . 1 . 2 . . . . . . . . . . . . . . . Artifact . | . . . . . . . . . . . . . . . . . . . . . . . Weapon 39 | 2 3 . . . 2 1 . 4 . 2 1 4 1 2 . 5 . 1 1 3 1 6 Energy Gun 2 | 1 1 . . . . . . . . . . . . . . . . . . . . . Energy Cannon . | . . . . . . . . . . . . . . . . . . . . . . . Ballistic Gun 4 | 1 . . . . 1 1 . . . . 1 . . . . . . . . . . . Ballistic Cannon 10 | . 2 . . . 1 . . 2 . 1 . 2 1 . . 1 . . . . . . Launcher 7 | . . . . . . . . 2 . 1 . 1 . . . 1 . . . . . 2 Special Weapon 7 | . . . . . . . . . . . . . . 1 . 1 . 1 1 1 1 1 Impact Weapon 6 | . . . . . . . . . . . . . . 1 . 2 . . . 2 . 1 Slashing Weapon . | . . . . . . . . . . . . . . . . . . . . . . . Piercing Weapon 2 | . . . . . . . . . . . . . . . . . . . . . . 2 Special Melee Weapon 1 | . . . . . . . . . . . . 1 . . . . . . . . . . Unidentified Prototypes 8 | . . . . . . . 2 . . . 1 . . . . . . . . . . 5 Parts Lost 3 | . . . . . . . . 1 . . . . . 1 . . . . . . . 1 Power 1 | . . . . . . . . . . . . . . . . . . . . . . 1 Propulsion . | . . . . . . . . . . . . . . . . . . . . . . . Utility 2 | . . . . . . . . 1 . . . . . 1 . . . . . . . . Weapon . | . . . . . . . . . . . . . . . . . . . . . . . Highest Loss Streak 1 | . . . . . . . . 1 . . . . . 1 . . . . . . . 1 To Critical Strikes . | . . . . . . . . . . . . . . . . . . . . . . . Average Slot Usage (%) 91 | . 85 100 100 100 100 87 97 96 88 82 87 100 100 99 90 93 100 100 90 88 84 88 Engine 10 | . 14 14 14 14 14 11 11 11 11 9 9 9 9 9 9 9 9 9 8 8 7 5 Wheel 2 | . 10 . . . . . . . . . . . . . . . . . . . . . Flight 15 | . 3 28 28 28 28 22 22 22 22 19 18 18 18 18 18 18 18 18 14 8 7 11 Device 12 | . 14 14 14 14 14 11 13 11 11 9 11 18 18 17 9 9 9 9 8 8 7 7 Processor 15 | . 13 14 14 14 14 17 22 22 22 19 18 18 18 18 18 18 18 11 8 8 7 7 Hackware 11 | . . . . . . . . . . 6 12 18 18 18 18 21 27 33 33 38 38 38 Energy Gun 1 | . 8 . . . . . . . . . . . . . . . . . . . . . Ballistic Gun 7 | . 14 14 14 14 14 11 11 11 11 9 9 9 9 . . . . . . . . . Ballistic Cannon 6 | . 5 14 14 14 14 11 11 10 11 8 9 7 9 . . . . . . . . . Special Weapon 2 | . . . . . . . . . . . . . . 8 9 7 9 9 8 8 7 7 Impact Weapon 2 | . . . . . . . . . . . . . . 8 9 8 9 9 8 8 7 3 Peak Build Rating 69 | 4 7 7 8 11 19 19 24 23 23 26 34 34 34 35 32 35 35 41 45 49 47 69 Average Rating 25 | 2 5 7 7 10 14 17 21 22 23 25 29 33 34 34 32 32 35 37 41 46 47 52 On Entrance 25 | . 4 7 7 8 11 16 19 23 23 23 26 34 34 34 32 32 35 35 41 45 47 47 Naked Turns . | . . . . . . . . . . . . . . . . . . . . . . . Heaviest Build 23 | 9 9 9 9 9 14 16 23 23 20 20 20 20 20 19 15 18 15 16 16 16 15 22 Greatest Support 33 | 8 30 18 18 27 27 27 28 25 23 24 27 27 27 27 27 27 27 27 33 33 33 33 Greatest Overweight (x) 1 | 1 . . . . . . . . . . . . . . . . . . . . . . Average Overweight (x) . | . . . . . . . . . . . . . . . . . . . . . . . Largest Inventory Capacity 6 | 1 2 2 2 2 2 2 3 4 4 5 5 5 6 6 6 6 6 6 6 6 6 6 Average Capacity 3 | 1 1 2 2 2 2 2 2 3 4 4 5 5 5 6 6 6 6 6 6 6 6 6 Most Carried 6 | . 1 1 2 2 2 2 3 4 4 4 5 5 6 6 6 6 6 6 6 6 6 6 Average Carried 3 | . . 1 1 2 2 1 2 3 4 4 4 5 5 6 6 6 6 5 6 5 6 5 Final Capacity 6 | 1 2 2 2 2 2 2 3 4 4 5 5 5 6 6 6 6 6 6 6 6 6 6 Final Carried 6 | . 1 1 2 2 2 2 3 4 4 4 5 5 6 6 6 6 6 6 6 6 6 5 Class Distribution -------------------- 30% | Hacker-Scout 15% | Mutant 12% | Botlord-Mutant 10% | Hacker-Mutant 10% | Scavenger-Mutant 10% | Hacker-Ninja 4% | Bothacker-Mutant 3% | Botlord-Sprinter Dominant Class ---------------- Mutant | -10/Materials Scavenger-Mutant | -10/Mines Scavenger-Mutant | -10/Exiles Scavenger-Mutant | -9/Mines Hacker-Mutant | -8/Materials Scavenger-Mutant | -8/Garrison Hacker-Scout | -8/Materials Hacker-Scout | -8/Garrison Hacker-Scout | -7/Factory Hacker-Scout | -7/Garrison Hacker-Scout | -7/Factory Hacker-Scout | -7/Garrison Hacker-Scout | -6/Factory Hacker-Ninja | -6/Garrison Hacker-Mutant | -6/Factory Hacker-Mutant | -6/Garrison Bothacker-Mutant | -6/Factory Botlord-Mutant | -6/Garrison Botlord-Mutant | -5/Factory Botlord-Mutant | -5/Garrison Botlord-Mutant | -4/Factory Botlord-Sprinter | -4/Armory Resources | -11 -10 -10 -10 -9 -8 -8 -8 -8 -7 -7 -7 -7 -6 -6 -6 -6 -6 -6 -5 -5 -4 -4 ----------- Run | Yrd Mat Min Exi Min Mat Gar Mat Gar Fac Gar Fac Gar Fac Gar Fac Gar Fac Gar Fac Gar Fac Arm Matter Collected 2510 | 239 378 . . 10 24 491 190 238 20 270 24 . . 192 106 . 152 55 65 56 . . Remotely . | . . . . . . . . . . . . . . . . . . . . . . . Salvage Created 1805 | 107 541 . . 10 20 273 261 158 . 220 20 . . . 106 . . 89 . . . . Parts 108 | 2 42 . . 3 3 15 12 16 . 10 4 . . . . . . . . 1 . . Haulers Intercepted 3 | . 2 . . . . . 1 . . . . . . . . . . . . . . . Recyclers Shooed 2 | 1 1 . . . . . . . . . . . . . . . . . . . . . Parts Field Recycled . | . . . . . . . . . . . . . . . . . . . . . . . Retrieved Matter . | . . . . . . . . . . . . . . . . . . . . . . . Parts Self-Destructed . | . . . . . . . . . . . . . . . . . . . . . . . Prevented . | . . . . . . . . . . . . . . . . . . . . . . . Kills | -11 -10 -10 -10 -9 -8 -8 -8 -8 -7 -7 -7 -7 -6 -6 -6 -6 -6 -6 -5 -5 -4 -4 ------- Run | Yrd Mat Min Exi Min Mat Gar Mat Gar Fac Gar Fac Gar Fac Gar Fac Gar Fac Gar Fac Gar Fac Arm Combat Hostiles Destroyed 51 | . 15 . . . . 10 4 14 . 7 . . . . . . . . . 1 . . Melee 1 | . . . . . . . . . . . . . . . . . . . . 1 . . Guns 23 | . 14 . . . . 5 3 1 . . . . . . . . . . . . . . Cannons 14 | . 1 . . . . 5 1 4 . 3 . . . . . . . . . . . . AOE 13 | . . . . . . . . 9 . 4 . . . . . . . . . . . . Classes Destroyed 14 | 2 6 . . 1 . 2 . 1 . . . . . . . . . 1 . 1 . . Worker 2 | . 2 . . . . . . . . . . . . . . . . . . . . . Tunneler 1 | 1 . . . . . . . . . . . . . . . . . . . . . . Hauler 3 | . 2 . . . . . 1 . . . . . . . . . . . . . . . Recycler 2 | 1 . . . . . . . . . . . . . . 1 . . . . . . . Carrier 1 | . . . . . . . . . . . . . . . . . . 1 . . . . Operator 2 | . 1 . . . . . . . . . 1 . . . . . . . . . . . Watcher 3 | . 2 . . . 1 . . . . . . . . . . . . . . . . . Swarmer 20 | . 6 . . . . 4 . 8 . 2 . . . . . . . . . . . . Cutter 3 | . . . . . . . . 3 . . . . . . . . . . . . . . Saboteur 1 | . . . . . . . . . . . . . . . . . . . . 1 . . Grunt 20 | . 9 . . . . 3 2 1 . 5 . . . . . . . . . . . . Sentry 6 | . . . . . . 2 2 2 . . . . . . . . . . . . . . Hunter 1 | . . . . . . 1 . . . . . . . . . . . . . . . . Zionite 1 | . . . . 1 . . . . . . . . . . . . . . . . . . Best Kill Streak 12 | 2 6 . . . 1 5 2 12 . 5 1 . . . 1 . . . . 1 . . Combat Bots Only 12 | . 5 . . . . 5 1 12 . 5 . . . . . . . . . 1 . . Max Kills in Single Turn 3 | 1 2 . . 1 1 1 1 3 . 2 1 . . . 1 . . 1 . 1 . . Gunslinging . | . . . . . . . . . . . . . . . . . . . . . . . Exploded 3 | . . . . . . . . 3 . 2 . . . . . . . . . . . . Melee 1 | . . . . . . . . . . . . . . . . . . . . 1 . . Uniques/NPCs Destroyed . | . . . . . . . . . . . . . . . . . . . . . . . Combat | -11 -10 -10 -10 -9 -8 -8 -8 -8 -7 -7 -7 -7 -6 -6 -6 -6 -6 -6 -5 -5 -4 -4 -------- Run | Yrd Mat Min Exi Min Mat Gar Mat Gar Fac Gar Fac Gar Fac Gar Fac Gar Fac Gar Fac Gar Fac Arm Hostile Shots Fired 488 | . 64 . . . . 85 49 29 4 103 6 . . 58 . 17 . 21 9 5 10 28 Missed 212 | . 20 . . . . 24 23 12 3 58 6 . . 24 . 10 . 8 4 2 3 15 Damage Taken 4022 | . 521 . . . . 641 434 358 17 592 . . . 534 . 95 . 202 82 . 200 346 Core 3266 | . 443 . . . . 521 311 299 13 471 . . . 438 . 77 . 181 68 . 158 286 Absorbed by Shields 143 | . . . . . . . . . . 20 . . . 72 . . . 51 . . . . Redirected to Core 2296 | . 248 . . . . 389 223 155 13 389 . . . 331 . 57 . 73 48 . 158 212 Core Remaining (%) 44 | 100 . . . 100 . . . 34 . . . 5 . . . . . 14 . 16 . . Volleys Fired 251 | 9 68 . . 1 2 44 17 24 7 11 3 13 5 8 . 8 . 10 . 1 1 19 Largest 2 | 2 2 . . 2 2 2 2 2 2 2 2 1 1 1 . 1 . 1 . 1 1 1 Hottest 76 | 70 70 . . 55 60 76 76 76 76 76 71 48 48 5 . 48 . 5 . 5 5 5 Shots Fired 400 | 18 134 . . 2 4 81 30 33 14 15 4 13 5 8 . 8 . 10 . 1 1 19 Gun 212 | 18 120 . . 1 2 37 13 9 7 4 1 . . . . . . . . . . . Cannon 128 | . 14 . . 1 2 44 17 17 7 7 3 9 5 . . 2 . . . . . . Launcher 20 | . . . . . . . . 7 . 4 . 4 . . . 5 . . . . . . Special 40 | . . . . . . . . . . . . . . 8 . 1 . 10 . 1 1 19 Kinetic 279 | 9 82 . . 2 4 81 30 26 14 11 4 9 5 . . 2 . . . . . . Thermal 61 | 9 52 . . . . . . . . . . . . . . . . . . . . . Explosive 20 | . . . . . . . . 7 . 4 . 4 . . . 5 . . . . . . Electromagnetic . | . . . . . . . . . . . . . . . . . . . . . . . Robot Hit Streak 15 | 5 10 . . 5 7 4 15 6 6 5 1 4 . 6 . 2 . 4 . 4 5 8 Robot Miss Streak 5 | 4 4 . . . . 5 1 2 1 2 1 . . 2 . . . 3 . . . 4 Penetration Max 1 | . . . . . . 1 1 . . . . . . . . . . . . . . . Secondary Targets . | . . . . . . . . . . . . . . . . . . . . . . . Shots Hit Robots 215 | 9 82 . . 1 2 36 20 15 12 6 1 3 . 5 1 1 . 9 . 2 1 9 Core Hits 95 | 3 36 . . 1 2 12 8 14 . 17 1 1 . . . . . . . . . . Critical Kills . | . . . . . . . . . . . . . . . . . . . . . . . Critical Parts Destroyed . | . . . . . . . . . . . . . . . . . . . . . . . Critical Strikes 16 | . 5 . . . . 6 1 2 1 . . 1 . . . . . . . . . . Burn 4 | . 4 . . . . . . . . . . . . . . . . . . . . . Blast 12 | . 1 . . . . 6 1 2 1 . . 1 . . . . . . . . . . Melee Attacks 55 | . . . . . . . . . . . . . . 6 1 4 6 9 3 5 8 13 Impact 44 | . . . . . . . . . . . . . . 6 1 4 6 9 3 5 8 2 Slashing . | . . . . . . . . . . . . . . . . . . . . . . . Piercing 11 | . . . . . . . . . . . . . . . . . . . . . . 11 Sneak Attacks 4 | . . . . . . . . . . . . . . . 1 . . 3 . . . . Combat Hostiles . | . . . . . . . . . . . . . . . . . . . . . . . Follow-up Attacks . | . . . . . . . . . . . . . . . . . . . . . . . Damage Inflicted 4854 | 114 1177 . . 12 32 934 441 875 307 497 30 46 . . 112 . . 245 . 32 . . Guns 2057 | 114 1017 . . 12 17 369 216 137 128 47 . . . . . . . . . . . . Cannons 1533 | . 160 . . . 15 565 225 215 179 98 30 46 . . . . . . . . . . Explosions 875 | . . . . . . . . 523 . 352 . . . . . . . . . . . . Melee 389 | . . . . . . . . . . . . . . . 112 . . 245 . 32 . . Ramming . | . . . . . . . . . . . . . . . . . . . . . . . Kinetic 3121 | 64 758 . . 12 32 934 441 352 307 145 30 46 . . . . . . . . . . Thermal 469 | 50 419 . . . . . . . . . . . . . . . . . . . . . Explosive 875 | . . . . . . . . 523 . 352 . . . . . . . . . . . . Electromagnetic . | . . . . . . . . . . . . . . . . . . . . . . . Impact 389 | . . . . . . . . . . . . . . . 112 . . 245 . 32 . . Slashing . | . . . . . . . . . . . . . . . . . . . . . . . Piercing . | . . . . . . . . . . . . . . . . . . . . . . . Highest Corruption 1 | . . . . . . . . . . . 1 1 . 1 1 1 1 1 . . . . Average Corruption 1 | . . . . . . . . . . . 1 1 . 1 1 1 1 1 . . . . Corruption Purged . | . . . . . . . . . . . . . . . . . . . . . . . Corruption Blocked . | . . . . . . . . . . . . . . . . . . . . . . . Effects 1 | . . . . . . . . . . . . . . . . 1 . . . . . . Data Loss (minor) 1 | . . . . . . . . . . . . . . . . 1 . . . . . . Overload Shots . | . . . . . . . . . . . . . . . . . . . . . . . Overflow Damage 139 | . 2 . . . . 17 . 49 . 11 . . . . 52 . . 8 . . . . Projectiles 29 | . 2 . . . . 17 . 10 . . . . . . . . . . . . . . Explosions 50 | . . . . . . . . 39 . 11 . . . . . . . . . . . . Melee 60 | . . . . . . . . . . . . . . . 52 . . 8 . . . . Knockbacks 14 | . 2 . . . . 5 2 . . . . . . . 1 . . 3 . 1 . . Impact 5 | . . . . . . . . . . . . . . . 1 . . 3 . 1 . . Kinetic 9 | . 2 . . . . 5 2 . . . . . . . . . . . . . . . Secondary . | . . . . . . . . . . . . . . . . . . . . . . . Self-Inflicted Damage 46 | . . . . . . . . 46 . . . . . . . . . . . . . . Shots 1 | . . . . . . . . 1 . . . . . . . . . . . . . . Rammed . | . . . . . . . . . . . . . . . . . . . . . . . Targets Rammed . | . . . . . . . . . . . . . . . . . . . . . . . Kicked . | . . . . . . . . . . . . . . . . . . . . . . . Crushed . | . . . . . . . . . . . . . . . . . . . . . . . Highest Temperature 345 | 63 264 . . . 30 345 72 41 30 40 10 30 34 5 . 16 . . . . . . Average Temperature 75 | 36 64 . . . 18 153 28 13 13 13 6 12 19 5 . 12 . . . . . . Received Heat Transfer 915 | . 255 . . . . 198 144 45 . 93 . . . 84 . . . 33 . . 36 27 Effects 3 | . . . . . . 3 . . . . . . . . . . . . . . . . Interference 3 | . . . . . . 3 . . . . . . . . . . . . . . . . Siege Activations . | . . . . . . . . . . . . . . . . . . . . . . . Robots Corrupted 2 | . . . . . . . . . . . . . . . 1 . . 1 . . . . Combat Hostiles . | . . . . . . . . . . . . . . . . . . . . . . . Parts Fried 1 | . . . . . . . . . . . . . . . 1 . . . . . . . Impact Corruptions 4 | . . . . . . . . . . . . . . . 2 . . 2 . . . . Robots Melted . | . . . . . . . . . . . . . . . . . . . . . . . Combat Hostiles . | . . . . . . . . . . . . . . . . . . . . . . . Parts Melted 4 | . 4 . . . . . . . . . . . . . . . . . . . . . Heat Transferred 1665 | 148 1517 . . . . . . . . . . . . . . . . . . . . . Parts Sabotaged 4 | . . . . . . . . . . . . . . . . . . . . 4 . . Parts Stolen . | . . . . . . . . . . . . . . . . . . . . . . . Parts Stripped . | . . . . . . . . . . . . . . . . . . . . . . . Power Chain Reactions . | . . . . . . . . . . . . . . . . . . . . . . . Alert | -11 -10 -10 -10 -9 -8 -8 -8 -8 -7 -7 -7 -7 -6 -6 -6 -6 -6 -6 -5 -5 -4 -4 ------- Run | Yrd Mat Min Exi Min Mat Gar Mat Gar Fac Gar Fac Gar Fac Gar Fac Gar Fac Gar Fac Gar Fac Arm Peak Influence 924 | 10 237 82 . . 17 441 597 924 530 767 458 107 77 184 89 384 207 415 220 300 255 314 Initial 485 | . 6 82 . . . 11 214 388 485 371 402 61 56 53 69 62 201 144 201 151 157 124 Average 235 | 2 121 82 . . 14 167 342 618 488 553 318 85 67 135 76 166 205 270 215 256 177 184 Maximum Alert Level 3 | . 1 . . . . 2 2 3 2 3 2 . . . . 1 1 2 1 1 1 1 Low Security (%) 53 | 100 81 100 . 100 100 59 . . . . 27 100 100 100 100 59 . 29 . 19 93 70 Level 1 25 | . 18 . . . . 34 71 6 . 16 . . . . . 40 100 68 100 80 6 29 Level 2 18 | . . . . . . 6 28 63 100 75 72 . . . . . . 2 . . . . Level 3 2 | . . . . . . . . 29 . 8 . . . . . . . . . . . . Level 4 . | . . . . . . . . . . . . . . . . . . . . . . . Level 5 . | . . . . . . . . . . . . . . . . . . . . . . . High Security . | . . . . . . . . . . . . . . . . . . . . . . . Max Security . | . . . . . . . . . . . . . . . . . . . . . . . Squads Dispatched 10 | . 2 . . . . . 2 . 1 . 1 . . . . . . . 1 . . 3 Investigation 2 | . 1 . . . . . . . . . . . . . . . . . . . . 1 Extermination . | . . . . . . . . . . . . . . . . . . . . . . . Reinforcement 8 | . 1 . . . . . 2 . 1 . 1 . . . . . . . 1 . . 2 Assault . | . . . . . . . . . . . . . . . . . . . . . . . Garrison . | . . . . . . . . . . . . . . . . . . . . . . . Intercept . | . . . . . . . . . . . . . . . . . . . . . . . Searches Triggered . | . . . . . . . . . . . . . . . . . . . . . . . Construction Impeded . | . . . . . . . . . . . . . . . . . . . . . . . Haulers Reinforced . | . . . . . . . . . . . . . . . . . . . . . . . Active Scanning Responses . | . . . . . . . . . . . . . . . . . . . . . . . Cargo Convoy Interrupts . | . . . . . . . . . . . . . . . . . . . . . . . Stealth | -11 -10 -10 -10 -9 -8 -8 -8 -8 -7 -7 -7 -7 -6 -6 -6 -6 -6 -6 -5 -5 -4 -4 --------- Run | Yrd Mat Min Exi Min Mat Gar Mat Gar Fac Gar Fac Gar Fac Gar Fac Gar Fac Gar Fac Gar Fac Arm Distress Signals 4 | . . . . . . . 1 . . . . . . . . . . . 1 . . 2 Communications Jammed 28 | . . . . . . . . . . . . . . . . . . . 6 . . 22 Distress Signals 28 | . . . . . . . . . . . . . . . . . . . 6 . . 22 Times Spotted 168 | . 22 . . . 1 11 19 16 2 20 7 . . 9 . 11 . 12 2 3 7 26 Peak Tracking Total 11 | . 3 . . . 1 5 10 5 4 11 5 . . 7 . 9 . 6 4 1 6 9 Tactical Retreats 25 | . 2 . . . . 4 5 1 1 2 1 . . 1 . 1 . 1 . . . 6 Traps | -11 -10 -10 -10 -9 -8 -8 -8 -8 -7 -7 -7 -7 -6 -6 -6 -6 -6 -6 -5 -5 -4 -4 ------- Run | Yrd Mat Min Exi Min Mat Gar Mat Gar Fac Gar Fac Gar Fac Gar Fac Gar Fac Gar Fac Gar Fac Arm Traps Triggered 25 | . 1 . . . . 3 . 2 . 2 3 . . 4 . . . 2 2 2 . 4 Indirectly . | . . . . . . . . . . . . . . . . . . . . . . . Trap Hack Attempts 1 | . . . . . . . . . . . . 1 . . . . . . . . . . Triggered . | . . . . . . . . . . . . . . . . . . . . . . . Disarmed 4 | . 4 . . . . . . . . . . . . . . . . . . . . . Reprogrammed 1 | . . . . . . . . . . . . 1 . . . . . . . . . . Reused . | . . . . . . . . . . . . . . . . . . . . . . . Traps Extracted . | . . . . . . . . . . . . . . . . . . . . . . . Installed . | . . . . . . . . . . . . . . . . . . . . . . . Triggered . | . . . . . . . . . . . . . . . . . . . . . . . Machines | -11 -10 -10 -10 -9 -8 -8 -8 -8 -7 -7 -7 -7 -6 -6 -6 -6 -6 -6 -5 -5 -4 -4 ---------- Run | Yrd Mat Min Exi Min Mat Gar Mat Gar Fac Gar Fac Gar Fac Gar Fac Gar Fac Gar Fac Gar Fac Arm Machines Disabled 21 | . 1 . . . . 1 . 1 . 3 . . . 2 . 4 . 3 . 2 . 4 Max in Single Turn 2 | . 1 . . . . 1 . 1 . 1 . . . 1 . 2 . 1 . 1 . 1 Garrison Relay 12 | . . . . . . 1 . 1 . 1 . . . 2 . 2 . 3 . 2 . . Phase Generator 1 | . . . . . . . . . . . . . . . . 1 . . . . . . Machines Repaired . | . . . . . . . . . . . . . . . . . . . . . . . Machines Dismantled . | . . . . . . . . . . . . . . . . . . . . . . . Machines Sabotaged . | . . . . . . . . . . . . . . . . . . . . . . . Overloaded Fab Kills . | . . . . . . . . . . . . . . . . . . . . . . . Hacking | -11 -10 -10 -10 -9 -8 -8 -8 -8 -7 -7 -7 -7 -6 -6 -6 -6 -6 -6 -5 -5 -4 -4 --------- Run | Yrd Mat Min Exi Min Mat Gar Mat Gar Fac Gar Fac Gar Fac Gar Fac Gar Fac Gar Fac Gar Fac Arm Machines Accessed 44 | . 7 . 2 . 5 . 3 2 2 1 5 1 2 . 1 1 1 1 1 1 1 7 Terminals 32 | . 7 . . . 4 . 2 2 1 1 3 1 1 . . 1 . 1 . 1 1 6 Fabricators 2 | . . . . . . . . . . . 1 . . . . . . . . . . 1 Repair Stations . | . . . . . . . . . . . . . . . . . . . . . . . Recycling Units . | . . . . . . . . . . . . . . . . . . . . . . . Scanalyzers . | . . . . . . . . . . . . . . . . . . . . . . . Garrison Access 8 | . . . . . 1 . 1 . 1 . 1 . 1 . 1 . 1 . 1 . . . Total Hacks 139 | . 31 . 2 . 26 . 7 4 6 1 21 1 3 . 1 5 1 2 1 2 2 23 Successful 84 | . 20 . 2 . 18 . 3 2 3 1 13 1 3 . 1 1 1 . 1 1 1 12 Failed 54 | . 11 . . . 7 . 4 2 3 . 8 . . . . 4 . 2 . 1 1 11 Catastrophic 10 | . 1 . . . . . 1 1 1 . . . . . . 1 . 2 . . 1 2 Database Lockouts 1 | . . . . . 1 . . . . . . . . . . . . . . . . . Manual 95 | . 22 . 1 . 21 . 6 3 2 1 9 1 1 . . 5 . 2 . 2 2 17 Terminals 124 | . 31 . . . 25 . 6 4 5 1 17 1 2 . . 5 . 2 . 2 2 21 Fabricators 5 | . . . . . . . . . . . 3 . . . . . . . . . . 2 Repair Stations . | . . . . . . . . . . . . . . . . . . . . . . . Recycling Units . | . . . . . . . . . . . . . . . . . . . . . . . Scanalyzers . | . . . . . . . . . . . . . . . . . . . . . . . Garrison Access 8 | . . . . . 1 . 1 . 1 . 1 . 1 . 1 . 1 . 1 . . . Terminal Hacks 48 | . 10 . 2 . 10 . 1 2 1 1 10 1 1 . . 1 . . . 1 . 7 Record 7 | . . . 1 . 1 . . . . . 5 . . . . . . . . . . . Part Schematic 1 | . . . . . . . . . . . . . . . . . . . . . . 1 Robot Analysis 3 | . 3 . . . . . . . . . . . . . . . . . . . . . Prototype ID Bank 5 | . 1 . . . 2 . . . . . 1 . . . . . . . . . . 1 Open Door 2 | . . . . . . . . 1 . . . . . . . . . . . . . 1 Level Access Points 1 | . . . . . . . . . . . . . . . . . . . . . . 1 Terminal Index 1 | . 1 . . . . . . . . . . . . . . . . . . . . . Garrison Index 4 | . . . . . . . 1 . 1 . 1 . 1 . . . . . . . . . Alert Level 2 | . . . . . 2 . . . . . . . . . . . . . . . . . Unreport Threat 4 | . 1 . . . . . . . . . 3 . . . . . . . . . . . Locate Traps 2 | . 2 . . . . . . . . . . . . . . . . . . . . . Disarm Traps 1 | . 1 . . . . . . . . . . . . . . . . . . . . . Security Status 1 | . . . . . . . . . . . . . . . . . . . . . . 1 Hauler Manifests 2 | . . . . . 2 . . . . . . . . . . . . . . . . . Registered Components 1 | . . . . . 1 . . . . . . . . . . . . . . . . . Zone Layout 4 | . 1 . . . 1 . . . . . . . . . . . . . . . . 2 Garrison Registry 5 | . . . . . . . . 1 . 1 . 1 . . . 1 . . . 1 . . Derelict Proto ID Bank 1 | . . . 1 . . . . . . . . . . . . . . . . . . . Protovariant Controls 1 | . . . . . 1 . . . . . . . . . . . . . . . . . Fabricator Hacks 3 | . . . . . . . . . . . 1 . . . . . . . . . . 2 Network Status 3 | . . . . . . . . . . . 1 . . . . . . . . . . 2 Repair Station Hacks . | . . . . . . . . . . . . . . . . . . . . . . . Recycling Unit Hacks . | . . . . . . . . . . . . . . . . . . . . . . . Scanalyzer . | . . . . . . . . . . . . . . . . . . . . . . . Garrison Access Hacks 8 | . . . . . 1 . 1 . 1 . 1 . 1 . 1 . 1 . 1 . . . Unlock Access 8 | . . . . . 1 . 1 . 1 . 1 . 1 . 1 . 1 . 1 . . . Unauthorized Hacks 25 | . 10 . . . 7 . 1 . 1 . 1 . 1 . . . . . . . 1 3 Terminals 25 | . 10 . . . 7 . 1 . 1 . 1 . 1 . . . . . . . 1 3 Track 1 | . 1 . . . . . . . . . . . . . . . . . . . . . Assimilate 1 | . . . . . 1 . . . . . . . . . . . . . . . . . Botnet 12 | . 3 . . . 2 . 1 . 1 . 1 . 1 . . . . . . . 1 2 Operators 1 | . . . . . . . . . . . . . . . . . . . . . . 1 Skim 10 | . 6 . . . 4 . . . . . . . . . . . . . . . . . Fabricators . | . . . . . . . . . . . . . . . . . . . . . . . Repair Stations . | . . . . . . . . . . . . . . . . . . . . . . . Recycling Units . | . . . . . . . . . . . . . . . . . . . . . . . Scanalyzers . | . . . . . . . . . . . . . . . . . . . . . . . Garrison Access . | . . . . . . . . . . . . . . . . . . . . . . . Data Cores Recovered 1 | . . . . . . . . . . . 1 . . . . . . . . . . . Used 1 | . . . . . . . . . . . 1 . . . . . . . . . . . Hacking Detections 29 | . 7 . . . 2 . 2 1 2 . 3 1 2 . . 1 . 1 . 1 1 5 Full Trace Events 3 | . . . . . . . . 1 . . . . . . . . . 1 . . . 1 Feedback Events . | . . . . . . . . . . . . . . . . . . . . . . . Feedback Blocked . | . . . . . . . . . . . . . . . . . . . . . . . Robot Schematics Acquired . | . . . . . . . . . . . . . . . . . . . . . . . Robots Built . | . . . . . . . . . . . . . . . . . . . . . . . Authchips . | . . . . . . . . . . . . . . . . . . . . . . . Time . | . . . . . . . . . . . . . . . . . . . . . . . Total Robot Build Rating . | . . . . . . . . . . . . . . . . . . . . . . . Part Schematics Acquired 1 | . . . . . . . . . . . . . . . . . . . . . . 1 Parts Built . | . . . . . . . . . . . . . . . . . . . . . . . Authchips . | . . . . . . . . . . . . . . . . . . . . . . . Time . | . . . . . . . . . . . . . . . . . . . . . . . Total Part Build Rating . | . . . . . . . . . . . . . . . . . . . . . . . Parts Repaired . | . . . . . . . . . . . . . . . . . . . . . . . Time . | . . . . . . . . . . . . . . . . . . . . . . . Parts Recycled . | . . . . . . . . . . . . . . . . . . . . . . . Recycled Matter . | . . . . . . . . . . . . . . . . . . . . . . . Retrieved Matter . | . . . . . . . . . . . . . . . . . . . . . . . Retrieved Components . | . . . . . . . . . . . . . . . . . . . . . . . Parts Scanalyzed . | . . . . . . . . . . . . . . . . . . . . . . . Part Schematics Acquired . | . . . . . . . . . . . . . . . . . . . . . . . Parts Damaged . | . . . . . . . . . . . . . . . . . . . . . . . Bothacking | -11 -10 -10 -10 -9 -8 -8 -8 -8 -7 -7 -7 -7 -6 -6 -6 -6 -6 -6 -5 -5 -4 -4 ------------ Run | Yrd Mat Min Exi Min Mat Gar Mat Gar Fac Gar Fac Gar Fac Gar Fac Gar Fac Gar Fac Gar Fac Arm Used RIF Installer 10 | . . . . . . 2 . 1 . 1 . 1 . . . 2 . 2 . 1 . . Coupler Efficiency 1 | . . . . . . . . . . . . . . . . . . 1 . . . . Threat Obfuscator 1 | . . . . . . . . . . . . . . . . . . . . 1 . . Signal Jammer 1 | . . . . . . 1 . . . . . . . . . . . . . . . . Robot Detection 1 | . . . . . . . . . . . . 1 . . . . . . . . . . Patrol Navigation 1 | . . . . . . . . . . 1 . . . . . . . . . . . . Structural Interface 1 | . . . . . . . . . . . . . . . . 1 . . . . . . Program Shield 1 | . . . . . . . . . . . . . . . . . . 1 . . . . Autooverride 2 | . . . . . . . . 1 . . . . . . . 1 . . . . . . Robots Hacked 36 | . . . . . . . . . . 1 . . . 5 . 5 . 7 1 1 2 14 Non-combat 2 | . . . . . . . . . . . . . . . . . . . . . 1 1 Combat 34 | . . . . . . . . . . 1 . . . 5 . 5 . 7 1 1 1 13 Autooverrided 14 | . . . . . . . . . . 1 . . . . . 5 . 1 1 . 1 5 Robot Hacks Applied 23 | . . . . . . . . . . . . . . 5 . 1 . 6 . 1 1 9 parse_system 1 | . . . . . . . . . . . . . . . . . . . . 1 . . map_route 2 | . . . . . . . . . . . . . . . . . . . . . 1 1 go_dormant 2 | . . . . . . . . . . . . . . . . . . . . . . 2 overwrite_iff 12 | . . . . . . . . . . . . . . 2 . 1 . 5 . . . 4 formatsys_high 5 | . . . . . . . . . . . . . . 3 . . . . . . . 2 formatsys_deep 1 | . . . . . . . . . . . . . . . . . . 1 . . . . Relay Couplers Released 23 | . . . . . . 2 . 2 . 1 . . . 4 . 4 . 6 . 4 . . Machine Destruction 23 | . . . . . . 2 . 2 . 1 . . . 4 . 4 . 6 . 4 . . Attached 11 | . . . . . . . . . . 1 . . . 1 . 1 . 4 . 3 . 1 Fabnet Peak Effective % . | . . . . . . . . . . . . . . . . . . . . . . . Robots Rewired 2 | . . . . . . . . 2 . . . . . . . . . . . . . . Allies Hacked 1 | . . . . . . . . . . . . . . 1 . . . . . . . . Hacks Repelled . | . . . . . . . . . . . . . . . . . . . . . . . Allies | -11 -10 -10 -10 -9 -8 -8 -8 -8 -7 -7 -7 -7 -6 -6 -6 -6 -6 -6 -5 -5 -4 -4 -------- Run | Yrd Mat Min Exi Min Mat Gar Mat Gar Fac Gar Fac Gar Fac Gar Fac Gar Fac Gar Fac Gar Fac Arm Total Allies 38 | . . . . 2 . . . 2 . 1 . . . 5 . 5 . 10 1 . 1 11 Largest Group 5 | . . . . 2 . . . 2 . 1 . . . 2 . 2 . 5 1 . . 4 Highest-Rated Group 203 | . . . . 51 . . . 62 . 12 . . . 76 . 58 . 109 29 . . 203 Highest-Rated Ally 143 | . . . . 31 . . . 31 . 12 . . . 47 . 29 . 29 29 . . 143 Total Orders 3 | . . . . . . . . 2 . . . . . . . . . 1 . . . . STAY 2 | . . . . . . . . 1 . . . . . . . . . 1 . . . . GUARD 1 | . . . . . . . . 1 . . . . . . . . . . . . . . Ally Attacks 106 | . . . . . . . . 18 . 1 . . . 20 . 16 . 24 3 . . 24 Total Damage 1829 | . . . . . . . . 355 . 18 . . . 306 . 132 . 310 58 . . 650 Kills 12 | . . . . . . . . 3 . 1 . . . 1 . 3 . 3 . . . 1 Allies Corrupted 2 | . . . . . . . . . . . . . . . . . . 1 . . . 1 Allies Melted . | . . . . . . . . . . . . . . . . . . . . . . . Intel | -11 -10 -10 -10 -9 -8 -8 -8 -8 -7 -7 -7 -7 -6 -6 -6 -6 -6 -6 -5 -5 -4 -4 ------- Run | Yrd Mat Min Exi Min Mat Gar Mat Gar Fac Gar Fac Gar Fac Gar Fac Gar Fac Gar Fac Gar Fac Arm Robot Analysis Total 3 | . 3 . . . . . . . . . . . . . . . . . . . . . Derelict Logs Recovered . | . . . . . . . . . . . . . . . . . . . . . . . Drone Launches . | . . . . . . . . . . . . . . . . . . . . . . . Drone Recoveries . | . . . . . . . . . . . . . . . . . . . . . . . Exploration | -11 -10 -10 -10 -9 -8 -8 -8 -8 -7 -7 -7 -7 -6 -6 -6 -6 -6 -6 -5 -5 -4 -4 ------------- Run | Yrd Mat Min Exi Min Mat Gar Mat Gar Fac Gar Fac Gar Fac Gar Fac Gar Fac Gar Fac Gar Fac Arm Turns Passed 5409 | 52 1039 43 80 20 108 516 377 391 198 154 399 130 63 584 36 127 134 226 76 155 115 386 Spaces Moved 6750 | 31 644 116 212 28 174 470 578 339 252 232 796 137 133 436 88 243 136 400 161 292 219 633 Core 419 | 31 388 . . . . . . . . . . . . . . . . . . . . . Treads . | . . . . . . . . . . . . . . . . . . . . . . . Legs . | . . . . . . . . . . . . . . . . . . . . . . . Wheels 249 | . 249 . . . . . . . . . . . . . . . . . . . . . Hover . | . . . . . . . . . . . . . . . . . . . . . . . Flight 6082 | . 7 116 212 28 174 470 578 339 252 232 796 137 133 436 88 243 136 400 161 292 219 633 Fastest Speed 29 | 50 37 37 37 37 44 44 34 34 34 30 34 37 37 37 37 37 37 37 37 40 40 29 Average Speed 40 | 53 61 37 37 43 44 44 42 34 34 33 36 37 37 37 37 37 37 37 37 40 40 34 Slowest Speed 100 | 100 80 37 37 44 44 44 44 34 34 34 37 37 37 37 37 37 37 37 40 40 40 40 Overloaded Moves 43 | . . . . . . . . . . 43 . . . . . . . . . . . . Propulsion Burnouts . | . . . . . . . . . . . . . . . . . . . . . . . Robots Hopped 43 | . . . . . . . 17 1 2 1 5 2 5 2 . . 1 2 3 . 1 1 Cave-ins Triggered . | . . . . . . . . . . . . . . . . . . . . . . . Time Travels 1 | . . . . . . . 1 . . . . . . . . . . . . . . . Exploration Rate (%) 32 | 2 87 36 59 10 21 51 64 52 11 36 22 26 4 43 4 42 4 49 6 43 12 52 Regions Visited 22 Branch Regions 4 Pre-discovered Areas 3 | . 2 . 1 . . . . . . . . . . . . . . . . . . . Known Exits Taken 13 | . 1 1 1 1 1 . 1 . 1 . 1 . 1 . 1 . 1 . 1 . 1 . Unknown Exits Taken 1 | 1 . . . . . . . . . . . . . . . . . . . . . . Scrap Searched . | . . . . . . . . . . . . . . . . . . . . . . . Spaces Dug 42 | . . . . . . . 3 1 . . 3 1 3 3 . 2 6 1 3 1 7 8 Terrain Destroyed 250 | . . . . . . 2 11 57 . 9 3 57 3 3 . 79 6 1 3 1 7 8 Melee 31 | . . . . . . . . . . . . . . 3 . 2 6 1 3 1 7 8 Projectile 22 | . . . . . . 2 11 2 . . 3 1 3 . . . . . . . . . AOE 197 | . . . . . . . . 55 . 9 . 56 . . . 77 . . . . . . Terrain Rammed . | . . . . . . . . . . . . . . . . . . . . . . . Walls Destroyed . | . . . . . . . . . . . . . . . . . . . . . . . Machines Disabled . | . . . . . . . . . . . . . . . . . . . . . . . Actions | -11 -10 -10 -10 -9 -8 -8 -8 -8 -7 -7 -7 -7 -6 -6 -6 -6 -6 -6 -5 -5 -4 -4 --------- Run | Yrd Mat Min Exi Min Mat Gar Mat Gar Fac Gar Fac Gar Fac Gar Fac Gar Fac Gar Fac Gar Fac Arm Total 8893 | 45 1151 115 212 33 202 698 665 577 348 290 892 198 136 839 89 260 206 454 166 319 228 770 Wait 1537 | . 402 . . 3 18 158 65 156 91 8 65 46 . 362 . . 65 15 . 5 . 78 Move 6649 | 30 643 115 211 27 174 469 544 335 248 229 786 132 123 431 88 242 134 395 155 291 216 631 Hop 43 | . . . . . . . 17 1 2 1 5 2 5 2 . . 1 2 3 . 1 1 Pick Up 18 | . 1 . 1 . . 1 2 . . . 2 . 1 . . . . 4 . 5 . 1 Fast Attach 45 | 5 8 . . . 2 1 4 . . 1 3 . . 1 . 1 . 1 3 5 . 10 Attach 4 | . . . . . . 1 . . . . . . . . . . . 1 . 1 . 1 Detach . | . . . . . . . . . . . . . . . . . . . . . . . Swap 36 | . 1 . . 1 2 1 3 6 . 2 2 4 1 2 . 5 . 3 . 1 1 1 Drop 48 | 1 6 . . 1 4 1 7 1 . . 4 . 1 1 . . . 7 2 4 1 7 Fire 251 | 9 68 . . 1 2 44 17 24 7 11 3 13 5 8 . 8 . 10 . 1 1 19 Melee 55 | . . . . . . . . . . . . . . 6 1 4 6 9 3 5 8 13 Ram . | . . . . . . . . . . . . . . . . . . . . . . . Kick . | . . . . . . . . . . . . . . . . . . . . . . . Crush . | . . . . . . . . . . . . . . . . . . . . . . . Escape Stasis 145 | . . . . . . 19 . 36 . 34 22 . . 26 . . . . . . . 8 Rewire 6 | . . . . . . . . 6 . . . . . . . . . . . . . . Trap 1 | . . . . . . . . . . . . 1 . . . . . . . . . . Miscellaneous 55 | . 22 . . . . 3 6 12 . 4 . . . . . . . 7 . 1 . . Route ------- -11/Scrapyard -10/Materials (discovered 5 exits: [*Mat x3] / *Min x2) -10/Mines -10/Exiles -9/Mines -8/Materials -8/Garrison -8/Materials (discovered 3 exits: *Fac x2 / Gar) -8/Garrison (discovered 3 exits: *Fac x3) -7/Factory (discovered 2 exits: *Fac / Gar) -7/Garrison (discovered 3 exits: *Fac x3) -7/Factory (discovered 2 exits: [*Low] / Gar) -7/Garrison (discovered 3 exits: *Fac x3) -6/Factory -6/Garrison (discovered 2 exits: *Fac x2) -6/Factory (discovered 2 exits: *Fac / Gar) -6/Garrison (discovered 3 exits: *Fac x3) -6/Factory -6/Garrison -5/Factory -5/Garrison (discovered 3 exits: *Fac x3) -4/Factory -4/Armory (discovered 2 exits: Res x2) History --------- Turn | Location | Event 1 | -11/Scrapyard | Upgraded with Propulsion slot (x1) 1 | -11/Scrapyard | Upgraded with Utility slot (x1) 1 | -11/Scrapyard | Upgraded with Weapon slot (x1) 15 | -11/Scrapyard | Discovered new exit (range 16) 53 | -11/Scrapyard | Entered Materials 54 | -10/Materials | Discovered new exit (range 12) 90 | -10/Materials | Discovered new exit (range 3) 138 | -10/Materials | Identified exit to Mines 207 | -10/Materials | Discovered exit to Mines (range 10) 305 | -10/Materials | Discovered new exit (range 15) 308 | -10/Materials | Build established: Mutant 553 | -10/Materials | Derelicts attacked the area 622 | -10/Materials | Learned 4 Recycling zone layouts 680 | -10/Materials | Discovered new exit (range 11) 697 | -10/Materials | Learned 4 Recycling zone layouts 761 | -10/Materials | Learned location of Mines (-9) 815 | -10/Materials | Learned location of Storage (-9) 842 | -10/Materials | Reached level 2 909 | -10/Materials | Learned location of 1 exit from Recycling 939 | -10/Materials | Learned 2 Mines zone layouts 977 | -10/Materials | Learned Storage security intel 1025 | -10/Materials | Learned 4 Recycling zone layouts 1081 | -10/Materials | Loaded intel: 11 interactive machine locations 1092 | -10/Materials | Entered Mines 1134 | -10/Mines | Deemed a non-threat by the Exiles lab entrance 1134 | -10/Mines | Discovered new exit (range 5) 1135 | -10/Mines | Identified exit to Exiles 1135 | -10/Mines | Entered Exiles 1144 | -10/Exiles | Met 8R-AWN 1151 | -10/Exiles | Met EX-HEX 1161 | -10/Exiles | Met EX-BIN 1165 | -10/Exiles | Aligned with FarCom system 1166 | -10/Exiles | Given EX-Vault access code 1175 | -10/Exiles | Opened EX-Vault 1178 | -10/Exiles | Found Chronowheel 1187 | -10/Exiles | Warned to stay clear of 0b10 Research branches 1192 | -10/Exiles | Exiles lab attacked by MAIN.C 1200 | -10/Exiles | Learned location of Zion (-6) 1211 | -10/Exiles | Discovered new exit (range 12) 1214 | -10/Exiles | Identified exit to Mines 1215 | -10/Exiles | Left Exiles lab with Chronowheel 1215 | -10/Exiles | Entered Mines 1217 | -9/Mines | Reached level 3 1229 | -9/Mines | Discovered new exit (range 7) 1231 | -9/Mines | Identified exit to Materials 1235 | -9/Mines | Entered Materials 1237 | -8/Materials | Reached level 4 1263 | -8/Materials | Central database locked down 1343 | -8/Materials | Identified exit to Garrison 1343 | -8/Materials | Entered Garrison 1406 | -8/Garrison | Installed Relay Interface Framework 1424 | -8/Garrison | Expanded RIF knowledge: Signal Jamming 1424 | -8/Garrison | Reached level 5 1424 | -8/Garrison | Upgraded with Utility slot (x2) 1445 | -8/Garrison | Triggered checkpoint 1537 | -8/Garrison | Build established: Hacker-Mutant 1676 | -8/Garrison | Core integrity fell below 50% 1730 | -8/Garrison | Discovered new exit (range 10) 1734 | -8/Garrison | Identified exit to Materials 1828 | -8/Garrison | Garrison Relay disabled 1859 | -8/Garrison | Entered Materials 1930 | -8/Materials | Reached level 6 1952 | -8/Materials | Activated Chronowheel 1952 | -8/Materials | Spacetime reconverged on an earlier point 2082 | -8/Materials | Discovered new exit (range 16) 2203 | -8/Materials | Discovered new exit (range 4) 2229 | -8/Materials | Build established: Hacker-Scout 2236 | -8/Materials | Identified exit to Garrison 2236 | -8/Materials | Entered Garrison 2313 | -8/Garrison | Garrison Relay disabled 2320 | -8/Garrison | Triggered checkpoint 2363 | -8/Garrison | Discovered new exit (range 40) 2363 | -8/Garrison | Discovered new exit (range 58) 2363 | -8/Garrison | Discovered new exit (range 35) 2363 | -8/Garrison | Reached level 7 2540 | -8/Garrison | Triggered checkpoint 2551 | -8/Garrison | Reached level 8 2560 | -8/Garrison | Spotted B-75 Beast 2576 | -8/Garrison | Destroyed 12 combat bots 2602 | -8/Garrison | Triggered checkpoint 2614 | -8/Garrison | Expanded RIF knowledge: Autooverride 2626 | -8/Garrison | Identified exit to Factory 2627 | -8/Garrison | Entered Factory 2628 | -7/Factory | Core integrity fell below 50% 2629 | -7/Factory | Reached level 9 2748 | -7/Factory | Discovered new exit (range 3) 2749 | -7/Factory | Identified exit to Factory 2825 | -7/Factory | Identified exit to Garrison 2825 | -7/Factory | Entered Garrison 2830 | -7/Garrison | Expanded RIF knowledge: Patrol Navigation 2847 | -7/Garrison | Triggered checkpoint 2860 | -7/Garrison | Garrison Relay disabled 2860 | -7/Garrison | Reached level 10 2864 | -7/Garrison | Upgraded with Utility slot (x2) 2895 | -7/Garrison | Triggered checkpoint 2905 | -7/Garrison | Triggered checkpoint 2907 | -7/Garrison | Core integrity fell below 20% 2961 | -7/Garrison | Discovered new exit (range 52) 2961 | -7/Garrison | Discovered new exit (range 26) 2961 | -7/Garrison | Discovered new exit (range 24) 2978 | -7/Garrison | Identified exit to Factory 2979 | -7/Garrison | Entered Factory 3335 | -7/Factory | Discovered new exit (range 3) 3378 | -7/Factory | Identified exit to Garrison 3378 | -7/Factory | Entered Garrison 3386 | -7/Garrison | Discovered exit to Factory (range 37) 3386 | -7/Garrison | Discovered exit to Factory (range 59) 3386 | -7/Garrison | Discovered exit to Factory (range 63) 3499 | -7/Garrison | Expanded RIF knowledge: Robot Detection 3499 | -7/Garrison | Reached level 11 3508 | -7/Garrison | Entered Factory 3509 | -6/Factory | Core integrity fell below 50% 3509 | -6/Factory | Core integrity fell below 20% 3510 | -6/Factory | Reached level 12 3571 | -6/Factory | Identified exit to Garrison 3571 | -6/Factory | Entered Garrison 3585 | -6/Garrison | Triggered checkpoint 3589 | -6/Garrison | Garrison Relay disabled 3745 | -6/Garrison | Triggered checkpoint 3752 | -6/Garrison | Heavy support dispatched to Factory 3756 | -6/Garrison | Garrison Relay disabled 3782 | -6/Garrison | Discovered new exit (range 8) 3784 | -6/Garrison | Identified exit to Factory 3883 | -6/Garrison | Build established: Hacker-Ninja 3957 | -6/Garrison | Triggered checkpoint 4127 | -6/Garrison | Triggered checkpoint 4147 | -6/Garrison | Discovered exit to Factory (range 12) 4155 | -6/Garrison | Entered Factory 4182 | -6/Factory | Lost 3 allies 4186 | -6/Factory | Discovered new exit (range 4) 4187 | -6/Factory | Identified exit to Factory 4191 | -6/Factory | Identified exit to Garrison 4191 | -6/Factory | Entered Garrison 4238 | -6/Garrison | Phase Generator disabled 4238 | -6/Garrison | Reached level 13 4257 | -6/Garrison | Triggered checkpoint 4263 | -6/Garrison | Expanded RIF knowledge: Autooverride 4267 | -6/Garrison | Garrison Relay disabled 4286 | -6/Garrison | Triggered checkpoint 4286 | -6/Garrison | Triggered checkpoint 4291 | -6/Garrison | Discovered new exit (range 34) 4291 | -6/Garrison | Discovered new exit (range 46) 4291 | -6/Garrison | Discovered new exit (range 52) 4303 | -6/Garrison | Garrison Relay disabled 4307 | -6/Garrison | Expanded RIF knowledge: Structural Interface 4308 | -6/Garrison | Reached level 14 4317 | -6/Garrison | Identified exit to Factory 4318 | -6/Garrison | Entered Factory 4452 | -6/Factory | Identified exit to Garrison 4452 | -6/Factory | Entered Garrison 4498 | -6/Garrison | Triggered checkpoint 4502 | -6/Garrison | Assimilated ARC 5a with formatsys_deep 4519 | -6/Garrison | Garrison Relay disabled 4528 | -6/Garrison | Garrison Relay disabled 4558 | -6/Garrison | Triggered checkpoint 4580 | -6/Garrison | Garrison Relay disabled 4601 | -6/Garrison | Spotted B-75 Beast 4613 | -6/Garrison | Reached level 15 4616 | -6/Garrison | Expanded RIF knowledge: Coupler Efficiency 4637 | -6/Garrison | Discovered exit to Factory (range 14) 4650 | -6/Garrison | Expanded RIF knowledge: Program Shield 4678 | -6/Garrison | Entered Factory 4679 | -5/Factory | Lost 3 allies 4679 | -5/Factory | Core integrity fell below 50% 4679 | -5/Factory | Core integrity fell below 20% 4680 | -5/Factory | Reached level 16 4680 | -5/Factory | Upgraded with Utility slot (x1) 4754 | -5/Factory | Identified exit to Garrison 4754 | -5/Factory | Entered Garrison 4784 | -5/Garrison | Garrison Relay disabled 4784 | -5/Garrison | Reached level 17 4789 | -5/Garrison | Garrison Relay disabled 4840 | -5/Garrison | Triggered checkpoint 4844 | -5/Garrison | Heavy support dispatched to Factory 4853 | -5/Garrison | Heavy support dispatched to Factory 4854 | -5/Garrison | Build established: Botlord-Mutant 4869 | -5/Garrison | Expanded RIF knowledge: Threat Obfuscation 4873 | -5/Garrison | Discovered new exit (range 52) 4873 | -5/Garrison | Discovered new exit (range 47) 4873 | -5/Garrison | Discovered new exit (range 38) 4898 | -5/Garrison | Found Relay Coupler [Proto] 4900 | -5/Garrison | Found Relay Coupler [Proto] 4902 | -5/Garrison | Found Relay Coupler [Proto] 4909 | -5/Garrison | Identified exit to Factory 4909 | -5/Garrison | Entered Factory 4910 | -4/Factory | Core integrity fell below 50% 4910 | -4/Factory | Core integrity fell below 20% 4911 | -4/Factory | Reached level 18 4912 | -4/Factory | Upgraded with Utility slot (x1) 5019 | -4/Factory | Discovered new exit (range 12) 5023 | -4/Factory | Identified exit to Armory 5024 | -4/Factory | Entered Armory 5026 | -4/Armory | Reached level 19 5169 | -4/Armory | Found Prototype Launcher 5169 | -4/Armory | Identified Com. Tesla Bomb Launcher 5171 | -4/Armory | Found Prototype Launcher 5171 | -4/Armory | Identified Mni. Smartbomb Launcher 5174 | -4/Armory | Found Mni. Smartbomb Launcher 5201 | -4/Armory | Lost 4 allies 5355 | -4/Armory | Spotted B-86 Titan 5398 | -4/Armory | Identified exit to Research 5409 | -4/Armory | Spotted Armor Guard 5409 | -4/Armory | Spotted Armor Guard 5410 | -4/Armory | Destroyed by Armor Guard with Helical Railgun Last Messages --------------- 05392_ Plasma Lance severed. 05393_ Acquired Lgt. Quantum Reactor. 05394_ Slug penetrates Wall. 05395_ Acquired Remote Datajack. 05396_ Acquired Plasma Lance. 05398_ Connecting with Terminal... >>Access(Main) Found 2 level access points to Research: (21,34) (97,40) Map updated. 05399_ RIF reveals location of hidden door. 05409_ Connecting with Door Terminal... >>Open(Door) Sealed Blast Doors opened. 05410_ RIF automatically rewrites Armor Guard IFF filter. 05410_ W-44 Eye distress signal jammed. 05410_ Slug penetrates W-44 Eye. 05410_ Penetrated by Slug. Map ----- +----------------------------------------------------+ | ?????????????????????????????????????????????????? | | ?????????????????????????????????????????????????? | | ?????????????????????????????????????????????????? | | ?????????????????????????????????????????????????? | | ?????????????????????????????????????????????????? | | ?????????????????????????????????????????????????? | | ?????????????????????????????????????????????????? | | ?????????????????????????????????????????????????? | | ?????????????????????????????????????????????????? | | ?????????????????????????????????????????????????? | | ?????????????????????????????????????????????????? | | ?????????????????????????????????????????????????? | | ??????????????????? ?????????????????????????????? | | ???????????????????! ????????????????????????????? | | ???????????????????? ????????????????????????????? | | ???????????????????? ??????????????############?? | | ????????????????????? ??????????????# #?# | | ????????????????????? ?????????????# ]]] #?# | | ?????????????????????? ?????????????# ]]] #?# | | ????????????? ########;########+##### ]]] ### | | ???????????? + + + | | ????????????? # # # | | ????????????? # # # | | ????????????? + # | | ????????????????????##### ######## + | | ???????????????????????#T@ #??????# # | | ???????????????????????## #??????# + | | ????????????????????????# #??????# ### | | ???????????????????????? Y#?????# #?? | | ???????????????????????? wY#?????# +?? | | ????????????????????????#######?????# #?? | | ????????????????????????????????????############ | | ???????????????????????????????????????????????# " | | ???????????????????????????????????????????????#?? | | ?????????????????????????????????????????????????? | | ?????????????????????????????????????????????????? | | ?????????????????????????????????????????????????? | | ?????????????????????????????????????????????????? | | ?????????????????????????????????????????????????? | | ?????????????????????????????????????????????????? | | ?????????????????????????????????????????????????? | | ???????????????????YY????????????????????????????? | | ?????????????????????????????????????????????????? | | ?????????????????????????????????????????????????? | | ?????????????????????????????????????????????????? | | ?????????????????????????????????????????????????? | | ?????????????????????????????????????????????????? | | ?????????????????????????????????????????????????? | | ?????????????????????????????????????????????????? | | ?????????????????????????????????????????????????? | +----------------------------------------------------+ Best States ------------- Heat Dissipation 31 Energy Generation 30 Energy Capacity 280 Matter Stores 300 Matter Capacity 300 Sight Range 16 Robot Scan Range 15 Terrain Scan Density 10 Jamming Range 12 Armor Coverage 150 Evasion (%) 64 Targeting Accuracy 5 Offensive Hacking 30 Defensive Hacking 10 Relay Coupler Types 6 Relay Coupler Value 297 Item Schematics ----------------- Q-thruster | -4/Armory | Hacked Robot Schematics ------------------ None Fabricated ------------ Nothing Alien Tech Used ----------------- None Achievements -------------- Fearless Challenges ------------ None RPGLIKE | -11 -10 -10 -10 -9 -8 -8 -8 -8 -7 -7 -7 -7 -6 -6 -6 -6 -6 -6 -5 -5 -4 -4 --------- Run | Yrd Mat Min Exi Min Mat Gar Mat Gar Fac Gar Fac Gar Fac Gar Fac Gar Fac Gar Fac Gar Fac Arm Levels Raised 18 | . 1 . . 1 1 1 1 2 1 1 . 1 1 . . 2 . 1 1 1 1 1 XP Earned 30675 | 3000 2050 500 350 500 1585 2500 675 2716 1500 2181 90 420 1590 1228 . 1795 . 2088 1500 1510 1500 1397 XP Spent 28300 | 2650 1700 . . 1600 800 2250 1450 1180 . 4870 . . 2780 . . 1380 540 . 4180 . 2920 . Upgrades 59 | 8 3 . . 2 1 9 3 3 . 6 . . 9 . . 6 2 . 4 . 3 . Propulsion Slot 1 | 1 . . . . . . . . . . . . . . . . . . . . . . Utility Slot 7 | 1 . . . . . 2 . . . 2 . . . . . . . . 1 . 1 . Weapon Slot 1 | 1 . . . . . . . . . . . . . . . . . . . . . . Core Integrity 30 | . . . . . . 6 . 2 . 2 . . 8 . . 6 2 . 2 . 2 . Heat Dissipation 1 | . . . . . . 1 . . . . . . . . . . . . . . . . Energy Generation 1 | . . . . . . . . . . 1 . . . . . . . . . . . . Mass Support 4 | 1 1 . . 1 . . . . . . . . . . . . . . 1 . . . Inventory Capacity 6 | 1 1 . . . . . 1 1 . 1 . . 1 . . . . . . . . . Hack Attack % 4 | 2 1 . . . 1 . . . . . . . . . . . . . . . . . Hack Defense % 2 | 1 . . . 1 . . . . . . . . . . . . . . . . . . KI Damage % 2 | . . . . . . . 2 . . . . . . . . . . . . . . . Protomatter Created 373 | . 164 . . . . 51 46 72 . 36 . . . . . . . . . 4 . . Integrity Restored 1154 | . 452 . . . . 69 138 267 . 96 . . . . . . . 117 . 15 . . Core 1145 | . 443 . . . . 69 138 267 . 96 . . . . . . . 117 . 15 . . Parts 9 | . 9 . . . . . . . . . . . . . . . . . . . . . Protomatter Decayed 189 | . 11 . . . . . . . . . . . . 57 . 34 . . . 4 . 83 Game ------ Seed MiningActiveProtection Manual? 0 Play Time 01:04:46 Cumulative 49.5 hours Start 2024.09.29 @ 01:45:03 End 2024.09.29 @ 02:48:53 Sessions 1 Manual Loads 0 Difficulty Rogue Special Mode Winter2019/RPGLIKE Game No. 62 Rogue 62 Adventurer 0 Explorer 0 Win Type - Total 1 Types 1/0/0/0/0/0/0/0/0 Lore% 35 Gallery% 49 Achievement% 51 Wizard Run 0 Options --------- Layout 1 ASCII 0 Keyboard 0 Movement Numpad Keybinds 0 Fullscreen 1 Font 20/SmallcapsGlow Map View 54x42 Zoom Use 0% Tactical HUD 1 Map Filters NONE Filters NONE Steam 1 RUN: d17db61c-9d15-4ccf-921e-9055083389f6